bitfinex/quotes_SOLUSD_20250528
["timestamp","ask_amount","ask_price","bid_price","bid_amount"]
[1748393888721,15.79301673,177.15,177.13,26.0]
[1748393889717,15.79301673,177.16,177.13,26.0]
[1748393891324,15.79301673,177.16,177.11,15.79301673]
[1748393891510,5.64493367,177.15,177.11,41.79301673]
[1748393892223,5.64493367,177.15,177.11,26.0]
[1748393892402,21.4379504,177.15,177.11,26.0]
[1748393892599,5.64493367,177.15,177.11,41.79301673]
[1748393892807,5.64493367,177.15,177.12,15.79301673]
[1748393894008,5.64493367,177.15,177.11,41.79301673]
[1748393894300,15.79301673,177.14,177.11,26.0]
[1748393894515,5.64557104,177.13,177.11,26.0]
[1748393895019,21.43858777,177.13,177.11,26.0]
[1748393895445,15.79301673,177.12,177.09,89.0]
[1748393895629,15.79301673,177.1,177.06,8.9]
[1748393895929,15.79301673,177.1,177.06,34.9]
[1748393896601,21.43972872,177.1,177.06,34.9]
[1748393897031,15.79301673,177.09,177.06,34.9]
[1748393898736,14.11392762,177.13,177.05,26.0]
[1748393898737,6.619,177.12,177.05,26.0]
[1748393898919,15.79301673,177.09,177.05,41.79301673]
[1748393899525,15.79301673,177.09,177.05,26.0]
[1748393900033,15.79301673,177.08,177.05,26.0]
[1748393900423,14.11392762,177.13,177.05,26.0]
[1748393900621,15.79301673,177.09,177.05,26.0]
[1748393900824,5.64716512,177.08,177.05,26.0]
[1748393901222,21.44018185,177.08,177.05,26.0]
[1748393901618,5.64716512,177.08,177.05,26.0]
[1748393901911,21.44018185,177.08,177.05,26.0]
[1748393902519,14.11392762,177.13,177.06,15.79301673]
[1748393902712,15.79301673,177.1,177.05,41.79301673]
[1748393902939,15.79301673,177.09,177.05,26.0]
[1748393903715,15.79301673,177.07,177.05,26.0]
[1748393904615,21.44077517,177.07,177.05,26.0]
[1748393904818,5.64775844,177.07,177.05,26.0]
[1748393906644,5.64775844,177.07,177.05,115.0]
[1748393906939,5.64775844,177.07,177.05,89.0]
[1748393906940,21.44077517,177.07,177.05,89.0]
[1748393907138,15.79301673,177.06,177.03,89.0]
[1748393908460,15.79301673,177.05,177.03,89.0]
[1748393908628,15.79301673,177.05,177.02,89.0]
[1748393909024,5.64844103,177.04,177.02,89.0]
[1748393910128,34.72,177.09,177.03,41.79301673]
[1748393910339,15.79301673,177.1,177.05,15.79301673]
[1748393910559,50.51301673,177.1,177.06,15.79301673]
[1748393910753,15.79301673,177.07,177.03,115.0]
[1748393910917,5.647803,177.06,177.03,115.0]
[1748393911261,5.647803,177.06,177.03,130.79301673]
[1748393912164,5.647803,177.06,177.03,115.0]
[1748393915644,5.647803,177.06,177.03,130.79301673]
[1748393915844,5.647803,177.06,177.04,15.79301673]
[1748393916250,5.647803,177.06,177.03,115.0]
[1748393916458,5.64716512,177.08,177.04,15.79301673]
[1748393916662,5.64620857,177.11,177.06,15.79301673]
[1748393916961,5.64620857,177.11,177.09,15.79301673]
[1748393917465,5.64620857,177.11,177.08,15.79301673]
[1748393919652,5.64620857,177.11,177.07,15.79301673]
[1748393919837,5.64620857,177.11,177.06,36.34782834]
[1748393920038,5.64620857,177.11,177.07,15.79301673]
[1748393924076,5.64620857,177.11,177.09,15.79301673]
[1748393924252,5.64594005,177.12,177.1,15.79301673]
[1748393925569,40.30567659,177.13,177.1,15.79301673]
[1748393926550,5.64567659,177.13,177.1,15.79301673]
[1748393927349,5.64567659,177.13,177.1,104.79301673]
[1748393927760,56.0779504,177.15,177.1,104.79301673]
[1748393928853,56.0779504,177.15,177.11,15.79301673]
[1748393929570,56.0779504,177.15,177.1,104.79301673]
[1748393931671,15.79301673,177.13,177.1,89.0]
[1748393931872,54.39726785,177.15,177.1,89.0]
[1748393931873,15.79301673,177.12,177.1,89.0]
[1748393932171,54.39726785,177.15,177.11,15.79301673]
[1748393932172,5.64493367,177.15,177.11,15.79301673]
[1748393932465,34.6,177.14,177.12,15.79301673]
[1748393933060,34.6,177.14,177.11,15.79301673]
[1748393933562,40.24493367,177.15,177.11,15.79301673]
[1748393934170,21.43773199,177.16,177.11,15.79301673]
[1748393934351,34.6,177.15,177.12,15.79301673]
[1748393935460,40.22471526,177.16,177.12,15.79301673]
[1748393935661,56.01773199,177.16,177.12,15.79301673]
[1748393936478,21.43773199,177.16,177.12,15.79301673]
[1748393936652,56.01773199,177.16,177.12,15.79301673]
[1748393937156,40.22471526,177.16,177.12,15.79301673]
[1748393937563,40.22471526,177.16,177.13,15.79301673]
[1748393937564,5.64471526,177.16,177.13,15.79301673]
[1748393938554,5.64471526,177.16,177.14,15.79301673]
[1748393938755,5.64471526,177.16,177.14,104.79301673]
[1748393939275,5.64471526,177.16,177.14,89.0]
[1748393940570,15.79301673,177.15,177.14,89.0]
[1748393941773,15.79301673,177.15,177.1,89.0]
[1748393941983,15.79301673,177.12,177.07,130.79301673]
[1748393942962,5.64620857,177.11,177.08,15.79301673]
[1748393943163,5.64557104,177.13,177.09,15.79301673]
[1748393943781,5.64557104,177.13,177.11,15.79301673]
[1748393943996,40.22523384,177.15,177.12,15.79301673]
[1748393946064,56.01825057,177.15,177.1,130.79301673]
[1748393946278,15.79301673,177.13,177.09,26.0]
[1748393946483,34.58,177.12,177.09,15.79301673]
[1748393946685,34.58,177.12,177.09,41.79301673]
[1748393946885,34.58,177.12,177.09,15.79301673]
[1748393947066,34.58,177.12,177.09,41.79301673]
[1748393948102,5.64620857,177.11,177.09,41.79301673]
[1748393948393,40.22600222,177.12,177.09,41.79301673]
[1748393949387,40.22600222,177.12,177.1,15.79301673]
[1748393949693,90.02773738,177.31,177.09,26.0]
[1748393949694,19.75416872,177.18,177.12,26.0]
[1748393949898,5.64397787,177.18,177.14,15.79301673]
[1748393950190,50.35301673,177.17,177.13,15.79301673]
[1748393950361,50.35301673,177.17,177.12,26.0]
[1748393950362,21.43763176,177.16,177.12,26.0]
[1748393950566,15.79301673,177.15,177.09,89.0]
[1748393950891,15.79301673,177.15,177.1,41.79301673]
[1748393951390,15.79301673,177.15,177.09,26.0]
[1748393951391,34.56,177.14,177.09,26.0]
[1748393951567,15.79301673,177.13,177.09,41.79301673]
[1748393951893,15.79301673,177.13,177.09,26.0]
[1748393952667,21.43890652,177.12,177.09,26.0]
[1748393953578,5.64588979,177.12,177.07,15.79301673]
[1748393953782,5.64588979,177.12,177.08,15.79301673]
[1748393956792,5.64588979,177.12,177.09,15.79301673]
[1748393960805,5.64588979,177.12,177.08,15.79301673]
[1748393963805,19.76061427,177.12,177.08,15.79301673]
[1748393964007,19.76061427,177.12,177.09,15.79301673]
[1748393966324,19.76061427,177.12,177.06,108.40782834]
[1748393966325,5.64588979,177.12,177.11,15.79301673]
[1748393966819,5.64588979,177.12,177.1,15.79301673]
[1748393967201,5.64588979,177.12,177.09,15.79301673]
[1748393970319,40.14568737,177.13,177.11,15.79301673]
[1748393970505,5.64568737,177.13,177.11,15.79301673]
[1748393970702,5.64568737,177.13,177.12,15.79301673]
[1748393971401,34.5,177.15,177.12,15.79301673]
[1748393972734,5.64525234,177.14,177.12,15.79301673]
[1748393973300,40.12525234,177.14,177.12,15.79301673]
[1748393973624,40.12525234,177.14,177.13,15.79301673]
[1748393974327,5.64525234,177.14,177.13,15.79301673]
[1748393975319,40.14525234,177.14,177.13,15.79301673]
[1748393977417,40.14525234,177.14,177.12,15.79301673]
[1748393979126,40.14525234,177.14,177.09,97.94]
[1748393979311,40.14525234,177.14,177.12,15.79301673]
[1748393979714,40.14525234,177.14,177.13,15.79301673]
[1748393980105,5.64525234,177.14,177.13,15.79301673]
[1748393980305,40.10525234,177.14,177.13,15.79301673]
[1748393987239,34.48,177.14,177.13,15.79301673]
[1748393987818,14.11200187,177.16,177.13,15.79301673]
[1748393988018,34.48,177.15,177.09,97.94]
[1748393988318,34.48,177.15,177.12,15.79301673]
[1748393988916,34.48,177.15,177.13,15.79301673]
[1748393990458,19.7566169,177.16,177.13,15.79301673]
[1748393990621,34.5,177.15,177.13,15.79301673]
[1748393993336,5.64525234,177.14,177.13,15.79301673]
[1748393994026,5.64525234,177.14,177.13,10.08456358]
[1748393994358,5.64525234,177.14,177.12,10.08456358]
[1748393994517,5.64525234,177.14,177.13,10.08456358]
[1748393994918,10.08456358,177.18,177.13,10.08456358]
[1748393994919,5.64397787,177.18,177.13,10.08456358]
[1748393995152,5.64397787,177.18,177.14,10.08456358]
[1748393995322,34.48,177.17,177.14,10.08456358]
[1748393996021,5.64461503,177.16,177.14,15.75339684]
[1748393998198,5.64397787,177.18,177.14,15.75339684]
[1748393998445,54.21392255,177.18,177.14,15.75339684]
[1748393999135,69.96731939,177.18,177.14,15.75339684]
[1748393999859,15.75339684,177.17,177.12,15.75339684]
[1748394000350,5.64461503,177.16,177.12,15.75339684]
[1748394000524,5.64461503,177.16,177.09,97.94]
[1748394000525,5.64461503,177.16,177.15,15.75339684]
[1748394000725,5.64461503,177.16,177.13,15.75339684]
[1748394001748,5.64461503,177.16,177.09,97.94]
[1748394002050,5.64461503,177.16,177.13,15.75339684]
[1748394002229,19.75503752,177.17,177.13,15.75339684]
[1748394002551,54.21503752,177.17,177.13,15.75339684]
[1748394002952,54.21503752,177.17,177.14,15.75339684]
[1748394003335,19.75503752,177.17,177.14,15.75339684]
[1748394004851,54.21503752,177.17,177.14,15.75339684]
[1748394008447,54.21503752,177.17,177.11,115.0]
[1748394008448,54.21503752,177.17,177.11,123.92]
[1748394008641,54.21503752,177.17,177.14,15.75339684]
[1748394011939,54.21503752,177.17,177.15,15.75339684]
[1748394013326,54.21503752,177.17,177.11,97.92]
[1748394013555,54.21503752,177.17,177.14,15.75339684]
[1748394016345,54.21503752,177.17,177.13,15.75339684]
[1748394017348,54.21503752,177.17,177.14,15.75339684]
[1748394017944,54.21503752,177.17,177.13,10.08314966]
[1748394019552,54.21503752,177.17,177.14,10.08314966]
[1748394021152,54.21503752,177.17,177.13,10.08314966]
[1748394021662,64.29818718,177.17,177.11,89.0]
[1748394021844,64.29818718,177.17,177.12,10.08314966]
[1748394022462,10.08314966,177.16,177.12,10.08314966]
[1748394022763,5.64365934,177.19,177.15,10.08314966]
[1748394022939,40.10365934,177.19,177.17,10.08314966]
[1748394023138,40.10365934,177.19,177.18,10.08314966]
[1748394023337,5.6430224,177.21,177.18,10.08314966]
[1748394023848,34.46,177.2,177.18,10.08314966]
[1748394024260,5.6430224,177.21,177.18,10.08314966]
[1748394024462,5.6423856,177.23,177.2,10.08314966]
[1748394024770,34.44,177.24,177.22,10.08314966]
[1748394025447,5.6423856,177.23,177.17,123.92]
[1748394025638,29.83149926,177.23,177.18,10.08314966]
[1748394025963,10.08314966,177.22,177.17,134.00314966]
[1748394026170,34.44,177.21,177.2,10.08314966]
[1748394027365,5.64334085,177.2,177.19,10.08314966]
[1748394027551,5.64334085,177.2,177.18,10.08314966]
[1748394027747,5.64334085,177.2,177.19,10.08314966]
[1748394029338,34.44,177.21,177.19,10.08314966]
[1748394029564,5.64292347,177.22,177.2,10.08314966]
[1748394029766,5.64292347,177.22,177.21,10.08314966]
[1748394029969,5.64247905,177.23,177.21,10.08314966]
[1748394030264,5.64247905,177.23,177.22,10.08314966]
[1748394030456,5.64143066,177.26,177.22,10.08314966]
[1748394030656,5.64143066,177.26,177.24,10.08314966]
[1748394031051,5.64143066,177.26,177.23,10.08314966]
[1748394031957,5.64143066,177.26,177.23,15.73792908]
[1748394032556,5.64111242,177.27,177.23,15.73792908]
[1748394032961,5.64111242,177.27,177.24,15.73792908]
[1748394036378,5.64111242,177.27,177.25,15.73792908]
[1748394036876,5.64079422,177.28,177.25,15.73792908]
[1748394037178,5.64079422,177.28,177.27,15.73792908]
[1748394037666,14.09934311,177.32,177.27,15.73792908]
[1748394037850,14.09934311,177.32,177.28,15.73792908]
[1748394037851,40.07983982,177.31,177.28,15.73792908]
[1748394038190,5.63983982,177.31,177.28,15.73792908]
[1748394038769,1.61,177.39,177.3,15.73792908]
[1748394038976,15.73792908,177.35,177.3,15.73792908]
[1748394039198,34.44,177.34,177.3,15.73792908]
[1748394039372,34.44,177.34,177.31,15.73792908]
[1748394039577,38.38129842,177.38,177.28,0.14216157]
[1748394039578,19.73164956,177.38,177.28,0.14216157]
[1748394039763,19.73164956,177.38,177.34,15.73792908]
[1748394039764,34.52,177.37,177.34,15.73792908]
[1748394039963,34.52,177.37,177.3,34.9]
[1748394040182,15.73792908,177.36,177.31,15.73792908]
[1748394040375,34.58,177.36,177.32,15.73792908]
[1748394040797,5.6385678,177.35,177.33,15.73792908]
[1748394041617,5.6385678,177.35,177.31,15.73792908]
[1748394041770,21.37649688,177.35,177.3,34.9]
[1748394042082,70.05291638,177.35,177.3,50.63792908]
[1748394042484,54.3149873,177.35,177.31,15.73792908]
[1748394043583,70.05291638,177.35,177.3,50.63792908]
[1748394043765,15.73792908,177.34,177.3,50.63792908]
[1748394044678,15.73792908,177.31,177.29,10.28679652]
[1748394044879,15.73792908,177.3,177.29,10.28679652]
[1748394045077,21.378087,177.3,177.29,10.28679652]
[1748394045278,5.64015792,177.3,177.29,10.28679652]
[1748394045667,21.378087,177.3,177.29,10.28679652]
[1748394046594,35.47848181,177.3,177.25,8.9]
[1748394046773,15.73792908,177.28,177.25,8.9]
[1748394047085,5.64111242,177.27,177.25,8.9]
[1748394047492,21.3790415,177.27,177.22,17.40052908]
[1748394047695,21.3790415,177.27,177.2,24.63792908]
[1748394047696,15.73792908,177.25,177.2,24.63792908]
[1748394047989,15.73792908,177.26,177.21,15.73792908]
[1748394048399,15.73792908,177.26,177.21,16.23792908]
[1748394049882,54.30389348,177.27,177.21,16.23792908]
[1748394050068,70.04182256,177.27,177.22,15.73792908]
[1748394051092,54.30389348,177.27,177.24,15.73792908]
[1748394052297,19.74389348,177.27,177.24,15.73792908]
[1748394052976,19.74389348,177.27,177.23,15.73792908]
[1748394053583,5.64111242,177.27,177.24,15.73792908]
[1748394053786,5.64111242,177.27,177.25,15.73792908]
[1748394054595,21.3790415,177.27,177.23,15.73792908]
[1748394054800,21.3790415,177.27,177.22,15.73792908]
[1748394054979,15.73792908,177.26,177.21,15.73792908]
[1748394055182,5.64174894,177.25,177.21,15.73792908]
[1748394057512,5.64174894,177.25,177.22,15.73792908]
[1748394058415,5.64174894,177.25,177.23,0.5]
[1748394058620,50.27792908,177.24,177.23,0.5]
[1748394058818,50.27792908,177.24,177.16,15.73792908]
[1748394058991,15.73792908,177.2,177.15,24.69792908]
[1748394059410,15.73792908,177.2,177.15,50.69792908]
[1748394059708,5.64365934,177.19,177.15,50.69792908]
[1748394059908,5.64365934,177.19,177.16,15.73792908]
[1748394060094,5.64365934,177.19,177.17,15.73792908]
[1748394060410,5.6423856,177.23,177.18,15.73792908]
[1748394060590,5.6423856,177.23,177.2,15.73792908]
[1748394061713,40.16216633,177.24,177.21,15.73792908]
[1748394062187,5.64216633,177.24,177.21,15.73792908]
[1748394062907,5.64216633,177.24,177.22,15.73792908]
[1748394063410,5.64216633,177.24,177.23,0.5]
[1748394063609,34.5,177.27,177.23,16.23792908]
[1748394064305,14.10216127,177.28,177.24,15.73792908]
[1748394064987,55.87840513,177.29,177.24,15.73792908]
[1748394065188,40.14047605,177.29,177.25,15.73792908]
[1748394066025,21.37840513,177.29,177.25,15.73792908]
[1748394066201,55.87840513,177.29,177.25,15.73792908]
[1748394066518,55.87840513,177.29,177.24,104.73792908]
[1748394067219,55.87840513,177.29,177.25,15.73792908]
[1748394067514,40.14047605,177.29,177.25,15.73792908]
[1748394068026,69.97959527,177.29,177.24,89.0]
[1748394068332,69.97959527,177.29,177.24,104.73792908]
[1748394068703,69.97959527,177.29,177.24,89.0]
[1748394068704,15.73792908,177.25,177.24,89.0]
[1748394068905,50.21792908,177.25,177.23,0.5]
[1748394069223,50.21792908,177.25,177.21,8.96]
[1748394069224,15.73792908,177.24,177.21,8.96]
[1748394069800,5.6423856,177.23,177.21,8.96]
[1748394070004,21.38031468,177.23,177.21,8.96]
[1748394070596,5.6423856,177.23,177.21,8.96]
[1748394071225,5.6423856,177.23,177.21,24.69792908]
[1748394071449,40.12203794,177.25,177.22,15.73792908]
[1748394071597,5.64203794,177.25,177.23,15.73792908]
[1748394071802,5.64203794,177.25,177.24,15.73792908]
[1748394072445,40.10154018,177.26,177.24,15.73792908]
[1748394072610,5.64154018,177.26,177.24,15.73792908]
[1748394073995,15.73792908,177.26,177.21,8.96]
[1748394074192,15.73792908,177.26,177.22,15.73792908]
[1748394074394,69.96182256,177.27,177.23,15.73792908]
[1748394074622,35.48182256,177.27,177.23,15.73792908]
[1748394074796,54.24389348,177.27,177.23,15.73792908]
[1748394075616,69.98182256,177.27,177.22,15.73792908]
[1748394076225,15.73792908,177.26,177.21,113.69792908]
[1748394076530,15.73792908,177.25,177.21,113.69792908]
[1748394077134,15.73792908,177.26,177.21,113.69792908]
[1748394077333,54.24389348,177.27,177.21,113.69792908]
[1748394077334,15.73792908,177.25,177.21,8.96]
[1748394077837,15.73792908,177.26,177.21,24.69792908]
[1748394078941,5.64174894,177.25,177.21,24.69792908]
[1748394079442,5.64174894,177.25,177.22,0.5]
[1748394080313,21.37967802,177.25,177.22,0.5]
[1748394080818,5.64174894,177.25,177.21,24.69792908]
[1748394082508,5.64174894,177.25,177.22,15.73792908]
[1748394082720,5.64174894,177.25,177.21,24.69792908]
[1748394082911,5.64174894,177.25,177.21,8.96]
[1748394083104,5.64174894,177.25,177.21,24.69792908]
[1748394083334,5.64174894,177.25,177.21,8.96]
[1748394083335,15.73792908,177.23,177.21,8.96]
[1748394083728,50.21792908,177.23,177.21,8.96]
[1748394084127,5.64270398,177.22,177.21,8.96]
[1748394085742,34.48,177.23,177.21,8.96]
[1748394085937,5.64247744,177.23,177.21,8.96]
[1748394086325,5.64247744,177.23,177.21,24.69792908]
[1748394087729,5.64247744,177.23,177.21,8.96]
[1748394088043,5.64247744,177.23,177.22,0.5]
[1748394089132,5.64247744,177.23,177.21,8.96]
[1748394089334,21.38040652,177.23,177.21,8.96]
[1748394089510,15.73792908,177.22,177.21,8.96]
[1748394090417,15.73792908,177.22,177.17,104.73792908]
[1748394090618,15.73792908,177.18,177.13,24.65792908]
[1748394090818,34.48,177.17,177.13,24.65792908]
[1748394091026,5.64461503,177.16,177.13,24.65792908]
[1748394091608,40.12435713,177.17,177.14,15.73792908]
[1748394092343,40.12435713,177.17,177.15,0.5]
[1748394092924,34.48,177.17,177.16,15.73792908]
[1748394094420,40.10375274,177.19,177.16,15.73792908]
[1748394094625,15.73792908,177.24,177.18,15.73792908]
[1748394094842,34.5,177.23,177.21,15.73792908]
[1748394095224,5.64270398,177.22,177.21,15.73792908]
[1748394096636,5.64248497,177.23,177.21,15.73792908]
[1748394097028,34.5,177.24,177.22,15.73792908]
[1748394097227,5.64047605,177.29,177.23,15.73792908]
[1748394097560,34.5,177.26,177.23,15.73792908]
[1748394097741,15.73792908,177.28,177.23,15.73792908]
[1748394097923,34.48,177.27,177.23,15.73792908]
[1748394098349,5.64143066,177.26,177.23,15.73792908]
[1748394098864,5.64143066,177.26,177.22,15.73792908]
[1748394099717,5.64143066,177.26,177.23,15.73792908]
[1748394100655,5.64143066,177.26,177.22,15.73792908]
[1748394100824,15.73792908,177.25,177.2,15.73792908]
[1748394101153,15.73792908,177.24,177.2,15.73792908]
[1748394101352,34.46,177.23,177.21,15.73792908]
[1748394102136,50.19792908,177.23,177.19,15.73792908]
[1748394102360,50.19792908,177.23,177.18,24.65792908]
[1748394102660,5.64270398,177.22,177.18,24.65792908]
[1748394103573,5.64270398,177.22,177.2,15.73792908]
[1748394103931,5.64270398,177.22,177.21,15.73792908]
[1748394104320,5.64270398,177.22,177.18,8.92]
[1748394104525,5.6423856,177.23,177.2,15.73792908]
[1748394105659,5.6423856,177.23,177.21,15.73792908]
[1748394108336,5.6423856,177.23,177.19,15.73792908]
[1748394109357,5.6423856,177.23,177.2,15.73792908]
[1748394112537,19.7483496,177.23,177.19,15.73792908]
[1748394113044,35.48627868,177.23,177.19,15.73792908]
[1748394115956,19.7483496,177.23,177.19,15.73792908]
[1748394116269,34.46,177.24,177.22,15.73792908]
[1748394116270,5.64217229,177.24,177.22,15.73792908]
[1748394116446,5.64217229,177.24,177.23,15.73792908]
[1748394118360,19.74532753,177.26,177.22,15.73792908]
[1748394119239,54.18532753,177.26,177.22,15.73792908]
[1748394119464,40.08143066,177.26,177.23,15.73792908]
[1748394120152,5.64143066,177.26,177.23,15.73792908]
[1748394120965,5.50036306,177.26,177.23,15.73792908]
[1748394121349,5.64079422,177.28,177.25,15.73792908]
[1748394121553,5.64079422,177.28,177.26,15.73792908]
[1748394122467,40.08015792,177.3,177.26,15.73792908]
[1748394122674,5.64015792,177.3,177.28,15.73792908]
[1748394122857,34.44,177.32,177.29,15.73792908]
[1748394123060,34.44,177.32,177.3,15.73792908]
[1748394123777,34.44,177.32,177.29,15.73792908]
[1748394123976,5.63920374,177.33,177.29,15.73792908]
[1748394124272,40.07920374,177.33,177.29,15.73792908]
[1748394124450,5.63920374,177.33,177.3,15.73792908]
[1748394124655,5.63920374,177.33,177.25,1.70616157]
[1748394124656,5.63920374,177.33,177.29,15.73792908]
[1748394125862,5.63920374,177.33,177.3,15.73792908]
[1748394127152,19.7372131,177.33,177.29,15.73792908]
[1748394128046,19.7372131,177.33,177.27,26.0]
[1748394128252,19.7372131,177.33,177.29,15.73792908]
[1748394128560,19.7372131,177.33,177.3,15.73792908]
[1748394130971,19.7372131,177.33,177.29,15.73792908]
[1748394135676,35.47514218,177.33,177.29,15.73792908]
[1748394138362,19.7372131,177.33,177.3,15.73792908]
[1748394138786,5.63920374,177.33,177.31,15.73792908]
[1748394138967,5.63920374,177.33,177.3,15.73792908]
[1748394140095,15.73792908,177.31,177.25,90.564]
[1748394140272,15.73792908,177.3,177.25,132.30192908]
[1748394140462,15.73792908,177.3,177.26,15.73792908]
[1748394140669,50.15792908,177.31,177.26,15.73792908]
[1748394141565,50.15792908,177.31,177.25,116.564]
[1748394141566,15.73792908,177.27,177.25,89.0]
[1748394141802,15.73792908,177.27,177.2,97.9]
[1748394141803,15.73792908,177.26,177.2,97.9]
[1748394142101,5.64174894,177.25,177.21,16.23792908]
[1748394142263,15.73792908,177.24,177.21,0.5]
[1748394142593,15.73792908,177.23,177.21,0.5]
[1748394142764,50.15792908,177.23,177.21,0.5]
[1748394142965,15.73792908,177.22,177.2,8.9]
[1748394143188,50.15792908,177.23,177.2,8.9]
[1748394143675,34.42,177.23,177.2,8.9]
[1748394143995,5.64270398,177.22,177.2,8.9]
[1748394144366,5.64270398,177.22,177.2,24.63792908]
[1748394144983,5.64270398,177.22,177.2,8.9]
[1748394148364,21.38063306,177.22,177.2,8.9]
[1748394148569,15.73792908,177.21,177.18,9.65963339]
[1748394149098,50.17792908,177.2,177.18,9.65963339]
[1748394149270,50.17792908,177.2,177.15,139.63792908]
[1748394149807,50.17792908,177.2,177.14,15.73792908]
[1748394149808,21.38158842,177.19,177.14,15.73792908]
[1748394150014,15.73792908,177.18,177.13,113.63792908]
[1748394150308,34.44,177.17,177.14,15.73792908]
[1748394151206,5.64461503,177.16,177.14,15.73792908]
[1748394151689,5.64174894,177.25,177.15,15.73792908]
[1748394151888,5.64174894,177.25,177.2,15.73792908]
[1748394151889,34.44,177.24,177.2,15.73792908]
[1748394152301,50.17792908,177.24,177.19,15.73792908]
[1748394152511,34.44,177.23,177.19,15.73792908]
[1748394152874,5.64270398,177.22,177.19,15.73792908]
[1748394154321,5.64174894,177.25,177.21,15.73792908]
[1748394154476,5.64174894,177.25,177.24,15.73792908]
[1748394154676,1.569,177.26,177.24,15.73792908]
[1748394154677,7.21053797,177.26,177.24,15.73792908]
[1748394154880,7.21053797,177.26,177.25,15.73792908]
[1748394156486,21.31411463,177.26,177.23,15.73792908]
[1748394156688,21.31411463,177.26,177.24,15.73792908]
[1748394158109,21.31411463,177.26,177.23,15.73792908]
[1748394158408,21.31411463,177.26,177.22,15.73792908]
[1748394158610,21.31411463,177.26,177.23,15.73792908]
[1748394159210,21.31411463,177.26,177.22,15.73792908]
[1748394159892,21.31411463,177.26,177.23,15.73792908]
[1748394160839,21.31411463,177.26,177.25,15.73792908]
[1748394161183,55.75411463,177.26,177.25,15.73792908]
[1748394162692,55.75411463,177.26,177.24,15.73792908]
[1748394164398,21.31411463,177.26,177.24,15.73792908]
[1748394164600,34.44,177.25,177.24,15.73792908]
[1748394165200,40.08174894,177.25,177.24,15.73792908]
[1748394166413,40.08174894,177.25,177.19,97.9]
[1748394166414,54.18612129,177.25,177.19,97.9]
[1748394166718,54.18612129,177.25,177.24,15.73792908]
[1748394166917,40.08174894,177.25,177.24,15.73792908]
[1748394167732,5.64174894,177.25,177.24,15.73792908]
[1748394170454,19.74612129,177.25,177.19,97.9]
[1748394170611,19.74612129,177.25,177.22,15.73792908]
[1748394171233,19.74612129,177.25,177.19,8.9]
[1748394171535,19.74612129,177.25,177.21,15.73792908]
[1748394171836,35.48405037,177.25,177.2,15.73792908]
[1748394173835,19.74612129,177.25,177.22,15.73792908]
[1748394174947,35.48405037,177.25,177.2,15.73792908]
[1748394176924,15.73792908,177.22,177.17,15.73792908]
[1748394177237,34.44,177.21,177.17,15.73792908]
[1748394177928,5.64334085,177.2,177.17,15.73792908]
[1748394178631,19.75169299,177.2,177.18,15.73792908]
[1748394182880,19.75169299,177.2,177.14,99.4948]
[1748394183024,15.73792908,177.19,177.15,15.73792908]
[1748394183335,63.70632635,177.2,177.16,15.73792908]
[1748394183751,19.75169299,177.2,177.18,15.73792908]
[1748394183945,19.75169299,177.2,177.14,8.9]
[1748394184156,19.75169299,177.2,177.17,15.73792908]
[1748394184653,19.75169299,177.2,177.18,15.73792908]
[1748394184883,1.569,177.26,177.19,15.73792908]
[1748394185031,5.64174894,177.25,177.16,116.5576]
[1748394185230,54.18612129,177.25,177.24,15.73792908]
[1748394185432,5.64174894,177.25,177.24,15.73792908]
[1748394185756,7.21054203,177.26,177.24,15.73792908]
[1748394185939,7.21054203,177.26,177.25,15.73792908]
[1748394186549,1.569,177.26,177.25,15.73792908]
[1748394188767,7.21043066,177.26,177.25,26.0]
[1748394188941,7.21043066,177.26,177.25,15.73792908]
[1748394197244,21.31400732,177.26,177.21,89.0]
[1748394197479,21.31400732,177.26,177.24,15.73792908]
[1748394198175,55.75400732,177.26,177.24,15.73792908]
[1748394198882,55.75400732,177.26,177.25,15.73792908]
[1748394199083,41.65043066,177.26,177.25,15.73792908]
[1748394202276,7.21043066,177.26,177.25,15.73792908]
[1748394202655,21.31400732,177.26,177.2,10.5252]
[1748394202858,21.31400732,177.26,177.23,15.73792908]
[1748394203068,21.31400732,177.26,177.24,15.73792908]
[1748394203595,21.31400732,177.26,177.25,15.73792908]
[1748394203789,7.21043066,177.26,177.25,15.73792908]
[1748394212380,21.31400732,177.26,177.23,15.73792908]
[1748394212987,21.31400732,177.26,177.24,15.73792908]
[1748394213183,7.21043066,177.26,177.24,15.73792908]
[1748394213427,7.21043066,177.26,177.25,15.73792908]
[1748394216897,7.21043066,177.26,177.24,15.73792908]
[1748394217099,21.31400732,177.26,177.23,15.73792908]
[1748394218809,21.31400732,177.26,177.24,15.73792908]